fUST/lending_fUST_20240803
["ID","MTS","AMOUNT","RATE_DAILY","PERIOD"]
[334022276,1722683448874,-500.0,0.00013698,2]
[334022277,1722683448884,-500.0,0.00013698,2]
[334022278,1722683448894,-500.0,0.00013698,2]
[334022279,1722683448904,-500.0,0.00013698,2]
[334022280,1722683448914,-500.0,0.00013698,2]
[334022281,1722683448927,-502.66585048,0.00013698,2]
[334022282,1722683448936,-1050.89,0.00013698,2]
[334022283,1722683448946,-500.0,0.00013698,2]
[334022284,1722683448957,-231.820996,0.00013698,2]
[334022285,1722683448967,-395.97189526,0.00013698,2]
[334022286,1722683448977,-231.820996,0.00013698,2]
[334022287,1722683448987,-500.0,0.00013698,2]
[334022288,1722683448997,-231.820996,0.00013698,2]
[334022289,1722683449010,-231.820996,0.00013698,2]
[334022290,1722683449021,-231.820996,0.00013698,2]
[334022291,1722683449031,-2356.8,0.00013698,2]
[334022292,1722683449042,-2356.8,0.00013698,2]
[334022293,1722683449052,-501.44290441,0.00013698,2]
[334022294,1722683449062,-231.820996,0.00013698,2]
[334022295,1722683449072,-779.27,0.00013698,2]
[334022296,1722683449082,-231.820996,0.00013698,2]
[334022297,1722683449092,-231.820996,0.00013698,2]
[334022298,1722683449102,-2356.8,0.00013698,2]
[334022299,1722683449112,-2356.8,0.00013698,2]
[334022300,1722683449122,-231.820996,0.00013698,2]
[334022301,1722683449132,-727.85,0.00013698,2]
[334022302,1722683449141,-231.820996,0.00013698,2]
[334022303,1722683449151,-500.0,0.00013698,2]
[334022304,1722683449161,-2356.8,0.00013698,2]
[334022305,1722683449171,-500.0,0.00013698,2]
[334022306,1722683449180,-2356.8,0.00013698,2]
[334022307,1722683449190,-2356.8,0.00013698,2]
[334022308,1722683449200,-181.69971456,0.00013698,2]
[334022309,1722683449210,-500.0,0.00013698,2]
[334022310,1722683449219,-2356.8,0.00013698,2]
[334022311,1722683449230,-151.0,0.00013698,2]
[334022312,1722683449240,-2356.8,0.00013698,2]
[334022313,1722683449249,-151.0,0.00013698,2]
[334022314,1722683449259,-2356.8,0.00013698,2]
[334022315,1722683449270,-2356.8,0.00013698,2]
[334022316,1722683449279,-151.0,0.00013698,2]
[334022317,1722683449288,-2356.8,0.00013698,2]
[334022318,1722683449298,-151.0,0.00013698,2]
[334022319,1722683449308,-2356.8,0.00013698,2]
[334022320,1722683449318,-500.0,0.00013698,2]
[334022321,1722683449327,-151.0,0.00013698,2]
[334022322,1722683449337,-2356.8,0.00013698,2]
[334022323,1722683449348,-501.04256428,0.00013698,2]
[334022324,1722683449358,-2356.8,0.00013698,2]
[334022325,1722683449367,-2356.8,0.00013698,2]
[334022326,1722683449377,-2356.8,0.00013698,2]
[334022327,1722683449386,-520.42360811,0.00013698,2]
[334022328,1722683449486,-500.0,0.00013698,2]
[334022329,1722683449497,-1028.93,0.00013698,2]
[334022330,1722683449507,-629.63,0.00013698,2]
[334022331,1722683449516,-499.470329,0.00013699,2]
[334022332,1722683449526,-151.0,0.00013699,2]
[334022333,1722683449536,-151.0,0.00013699,2]
[334022334,1722683449546,-460.0112661,0.00013699,2]
[334022335,1722683449557,-264.88325096,0.00013699,2]
[334022336,1722683449567,-3246.19943716,0.00013699,2]
[334022337,1722683449577,-150.112233,0.000137,2]
[334022338,1722683449589,-5313.02250689,0.00013768,2]
[334022339,1722683449599,-552.757268,0.00013797,2]
[334022340,1722683449608,-552.757268,0.00013797,2]
[334022341,1722683449619,-333.748963,0.00013797,2]
[334022342,1722683449628,-333.748963,0.00013797,2]
[334022343,1722683449639,-1163.625441,0.00013797,2]
[334022344,1722683449649,-1163.625441,0.00013797,2]
[334022345,1722683449659,-294.2310959,0.000138,2]
[334022346,1722683449669,-206.9604941,0.000138,2]
[334022347,1722683449680,-588.3756487,0.000138,2]
[334022348,1722683449689,-206.960494,0.000138,2]
[334022349,1722683449701,-206.960494,0.000138,2]
[334022350,1722683449710,-206.960494,0.000138,2]
[334022351,1722683449720,-169.9525106,0.000138,2]
[334022352,1722683449729,-293.3411612,0.000138,2]
[334022353,1722683449740,-150.0,0.00013802,2]
[334022354,1722683449751,-642.326,0.00013802,2]
[334022355,1722683449763,-1410.0,0.00013802,2]
[334022356,1722683449775,-895.300982,0.00013802,2]
[334022357,1722683449785,-895.300982,0.00013802,2]
[334022358,1722683449797,-151.0,0.00013802,2]
[334022359,1722683449807,-151.0,0.00013802,2]
[334022360,1722683449820,-151.0,0.00013802,2]
[334022361,1722683449830,-723.124593,0.00013802,2]
[334022362,1722683449842,-723.124593,0.00013802,2]
[334022363,1722683449851,-2356.8,0.00013817,2]
[334022364,1722683449863,-797.727985,0.00013818,2]
[334022365,1722683449875,-797.727985,0.00013818,2]
[334022366,1722683449886,-750.022649,0.00013818,2]
[334022367,1722683449896,-750.022649,0.00013818,2]
[334022368,1722683449907,-151.0,0.00013818,2]
[334022369,1722683449918,-151.0,0.00013818,2]
[334022370,1722683449933,-693.987078,0.00013818,2]
[334022371,1722683449944,-693.987078,0.00013818,2]
[334022372,1722683449953,-151.0,0.00013818,2]
[334022373,1722683449963,-151.0,0.00013818,2]
[334022374,1722683449975,-151.0,0.00013818,2]
[334022375,1722683449985,-155.0,0.0001383,2]
[334022376,1722683449995,-367.8078729,0.00013853,2]
[334022377,1722683450009,-150.112233,0.000139,2]
[334022378,1722683450023,-600.0,0.00013939,2]
[334022379,1722683450035,-6013.29,0.00013961,2]
[334022380,1722683450044,-151.0,0.00013962,2]
[334022381,1722683450054,-151.0,0.00013962,2]
[334022382,1722683450064,-182.164398,0.00013962,2]
[334022383,1722683450073,-182.164398,0.00013962,2]
[334022384,1722683450083,-151.0,0.00013962,2]
[334022385,1722683450093,-151.0,0.00013962,2]
[334022386,1722683450104,-239.386363,0.00013962,2]
[334022387,1722683450114,-239.386363,0.00013962,2]
[334022388,1722683450124,-251.959794,0.00013962,2]
[334022389,1722683450133,-251.959794,0.00013962,2]
[334022390,1722683450143,-151.0,0.00013962,2]
[334022391,1722683450153,-552.757268,0.00013962,2]
[334022392,1722683450162,-552.757268,0.00013962,2]
[334022393,1722683450172,-333.748963,0.00013962,2]
[334022394,1722683450181,-333.748963,0.00013962,2]
[334022395,1722683450191,-1163.625441,0.00013962,2]
[334022396,1722683450201,-1163.625441,0.00013962,2]
[334022397,1722683450210,-2356.8,0.00013969,2]
[334022398,1722683450219,-895.300982,0.0001397,2]
[334022399,1722683450229,-895.300982,0.0001397,2]
[334022400,1722683450239,-151.0,0.0001397,2]
[334022401,1722683450249,-151.0,0.0001397,2]
[334022402,1722683450258,-151.0,0.0001397,2]
[334022403,1722683450274,-6013.29,0.0001397,2]
[334022404,1722683450284,-723.124593,0.0001397,2]
[334022405,1722683450293,-723.124593,0.0001397,2]
[334022406,1722683450302,-151.0,0.0001397,2]
[334022407,1722683450312,-440.848117,0.0001397,2]
[334022408,1722683450321,-440.848117,0.0001397,2]
[334022409,1722683450331,-808.864047,0.0001397,2]
[334022410,1722683450341,-808.864047,0.0001397,2]
[334022411,1722683450352,-231.820996,0.0001397,2]
[334022412,1722683450361,-231.820996,0.0001397,2]
[334022413,1722683450372,-151.0,0.0001397,2]
[334022414,1722683450381,-4465.884056,0.00013971,5]
[334022415,1722683450390,-6013.29,0.00013971,2]
[334022416,1722683450400,-6013.29,0.00013971,2]
[334022417,1722683450410,-6013.29,0.00013971,2]
[334022418,1722683450420,-6013.29,0.00013971,2]
[334022419,1722683450430,-6013.29,0.00013971,2]
[334022420,1722683450439,-6013.29,0.00013971,2]
[334022421,1722683450450,-6013.44564674,0.00013971,2]
[334022422,1722683450460,-2356.8,0.00013971,2]
[334022423,1722683450470,-2356.8,0.00013971,2]
[334022424,1722683450480,-2356.8,0.00013971,2]
[334022425,1722683450489,-2356.8,0.00013971,2]
[334022426,1722683450499,-2356.93,0.00013971,2]
[334022427,1722683450508,-165.96158349,0.00013972,2]
[334022428,1722683450522,-500.0,0.00013972,2]
[334022429,1722683450532,-500.0,0.00013972,2]
[334022430,1722683450541,-500.0,0.00013972,2]
[334022431,1722683450551,-500.0,0.00013972,2]
[334022432,1722683450561,-500.0,0.00013972,2]
[334022433,1722683450571,-502.03617777,0.00013972,2]
[334022434,1722683450581,-500.0,0.00013972,2]
[334022435,1722683450590,-503.1469616,0.00013972,2]
[334022436,1722683450600,-500.0,0.00013972,2]
[334022437,1722683450609,-242.15065063,0.00013972,2]
[334022438,1722683450619,-631.1,0.00013972,2]
[334022439,1722683450628,-562.74758183,0.00013972,2]
[334022440,1722683450638,-506.07,0.00013972,2]
[334022441,1722683450648,-502.28331278,0.00013972,2]
[334022442,1722683450657,-500.0,0.00013972,2]
[334022443,1722683450666,-500.0,0.00013972,2]
[334022444,1722683450677,-500.0,0.00013972,2]
[334022445,1722683450687,-151.0,0.00013972,2]
[334022446,1722683450696,-151.0,0.00013972,2]
[334022447,1722683450705,-500.0,0.00013972,2]
[334022448,1722683450715,-502.2640512,0.00013972,2]
[334022449,1722683450725,-500.0,0.00013972,2]
[334022450,1722683450734,-500.0,0.00013972,2]
[334022451,1722683450744,-502.80873224,0.00013972,2]
[334022452,1722683450754,-506.94191855,0.00013972,2]
[334022453,1722683450763,-514.48357762,0.00013972,2]
[334022454,1722683450776,-151.0,0.00013972,2]
[334022455,1722683450785,-151.0,0.00013972,2]
[334022456,1722683450794,-500.0,0.00013972,2]
[334022457,1722683450803,-500.0,0.00013972,2]
[334022458,1722683450812,-500.0,0.00013972,2]
[334022459,1722683450821,-500.0,0.00013972,2]
[334022460,1722683450831,-707.06,0.00013972,2]
[334022461,1722683450840,-182.164398,0.00013972,2]
[334022462,1722683450850,-182.164398,0.00013972,2]
[334022463,1722683450860,-182.164398,0.00013972,2]
[334022464,1722683450870,-182.164398,0.00013972,2]
[334022465,1722683450880,-502.19509732,0.00013972,2]
[334022466,1722683450890,-526.11905241,0.00013972,2]
[334022467,1722683450899,-328.13417458,0.00013972,2]
[334022468,1722683450909,-500.0,0.00013972,2]
[334022469,1722683450920,-567.72,0.00013972,2]
[334022470,1722683450936,-1082.09,0.00013972,2]
[334022471,1722683450946,-503.92339475,0.00013972,2]
[334022472,1722683450956,-500.0,0.00013972,2]
[334022473,1722683450968,-429.40485957,0.00013972,2]
[334022474,1722683450979,-500.0,0.00013972,2]
[334022475,1722683450988,-500.0,0.00013972,2]
[334022476,1722683450998,-500.0,0.00013972,2]
[334022477,1722683451010,-500.0,0.00013972,2]
[334022478,1722683451023,-506.66305378,0.00013972,2]
[334022479,1722683451034,-500.0,0.00013972,2]
[334022480,1722683451043,-500.14611743,0.00013972,2]
[334022481,1722683451053,-500.0,0.00013972,2]
[334022482,1722683451065,-500.0,0.00013972,2]
[334022483,1722683451076,-1555.35,0.00013972,2]
[334022484,1722683451087,-500.0,0.00013972,2]
[334022485,1722683451096,-500.0,0.00013972,2]
[334022486,1722683451106,-617.42309113,0.00013972,2]
[334022487,1722683451115,-500.0,0.00013972,2]
[334022488,1722683451125,-500.0,0.00013972,2]
[334022489,1722683451134,-500.0,0.00013972,2]
[334022490,1722683451144,-549.06,0.00013972,2]
[334022491,1722683451153,-500.0,0.00013972,2]
[334022492,1722683451162,-507.33011194,0.00013972,2]
[334022493,1722683451171,-151.0,0.00013972,2]
[334022494,1722683451182,-151.0,0.00013972,2]
[334022495,1722683451194,-151.0,0.00013972,2]
[334022496,1722683451204,-151.0,0.00013972,2]
[334022497,1722683451214,-500.0,0.00013972,2]
[334022498,1722683451223,-500.0,0.00013972,2]
[334022499,1722683451233,-500.0,0.00013972,2]
[334022500,1722683451242,-500.0,0.00013972,2]
[334022501,1722683451251,-500.0,0.00013972,2]
[334022502,1722683451261,-834.88,0.00013972,2]
[334022503,1722683451273,-500.0,0.00013972,2]
[334022504,1722683451282,-502.89503649,0.00013972,2]
[334022505,1722683451292,-500.0,0.00013972,2]
[334022506,1722683451301,-500.0,0.00013972,2]
[334022507,1722683451311,-500.0,0.00013972,2]
[334022508,1722683451321,-500.0,0.00013972,2]
[334022509,1722683451331,-500.0,0.00013972,2]
[334022510,1722683451342,-239.386363,0.00013972,2]
[334022511,1722683451351,-239.386363,0.00013972,2]
[334022512,1722683451364,-621.18,0.00013972,2]
[334022513,1722683451376,-239.386363,0.00013972,2]
[334022514,1722683451388,-251.959794,0.00013972,2]
[334022515,1722683451399,-239.386363,0.00013972,2]
[334022516,1722683451410,-251.959794,0.00013972,2]
[334022517,1722683451421,-251.959794,0.00013972,2]
[334022518,1722683451431,-251.959794,0.00013972,2]
[334022519,1722683451443,-573.2,0.00013972,2]
[334022520,1722683451453,-270.542061,0.00013972,2]
[334022521,1722683451463,-500.0,0.00013972,2]
[334022522,1722683451474,-506.02308493,0.00013972,2]
[334022523,1722683451484,-508.08071063,0.00013972,2]
[334022524,1722683451494,-883.45,0.00013972,2]
[334022525,1722683451504,-1281.08,0.00013972,2]
[334022526,1722683451513,-500.0,0.00013972,2]
[334022527,1722683451524,-500.0,0.00013972,2]
[334022528,1722683451534,-502.3387285,0.00013972,2]
[334022529,1722683451543,-165.15332026,0.00013972,2]
[334022530,1722683451553,-500.0,0.00013972,2]
[334022531,1722683451562,-500.0,0.00013972,2]
[334022532,1722683451572,-500.0,0.00013972,2]
[334022533,1722683451584,-500.0,0.00013972,2]
[334022534,1722683451595,-500.0,0.00013972,2]
[334022535,1722683451605,-843.46,0.00013972,2]
[334022536,1722683451615,-500.0,0.00013972,2]
[334022537,1722683451624,-500.0,0.00013972,2]
[334022538,1722683451633,-191.08169646,0.00013972,2]
[334022539,1722683451643,-500.0,0.00013972,2]
[334022540,1722683451653,-500.0,0.00013972,2]
[334022541,1722683451664,-500.0,0.00013972,2]
[334022542,1722683451674,-500.0,0.00013972,2]
[334022543,1722683451683,-500.0,0.00013972,2]
[334022544,1722683451694,-293.89662529,0.00013972,2]
[334022545,1722683451704,-500.0,0.00013972,2]
[334022546,1722683451716,-797.727985,0.00013972,2]
[334022547,1722683451820,-797.727985,0.00013972,2]
[334022548,1722683451830,-797.727985,0.00013972,2]
[334022549,1722683451840,-503.28980929,0.00013972,2]
[334022550,1722683451849,-797.727985,0.00013972,2]
[334022551,1722683451860,-797.727985,0.00013972,2]
[334022552,1722683451871,-797.727985,0.00013972,2]
[334022553,1722683451880,-630.5743959,0.00013972,2]
[334022554,1722683451891,-500.0,0.00013972,2]
[334022555,1722683451902,-750.022649,0.00013972,2]
[334022556,1722683451915,-750.022649,0.00013972,2]
[334022557,1722683451930,-750.022649,0.00013972,2]
[334022558,1722683451940,-750.022649,0.00013972,2]
[334022559,1722683451951,-750.022649,0.00013972,2]
[334022560,1722683451963,-750.022649,0.00013972,2]
[334022561,1722683451973,-152.213845,0.00013972,2]
[334022562,1722683451983,-151.0,0.00013972,2]
[334022563,1722683451994,-151.0,0.00013972,2]
[334022564,1722683452004,-693.987078,0.00013972,2]
[334022565,1722683452013,-693.987078,0.00013972,2]
[334022566,1722683452032,-693.987078,0.00013972,2]
[334022567,1722683452044,-693.987078,0.00013972,2]
[334022568,1722683452055,-693.987078,0.00013972,2]
[334022569,1722683452066,-693.987078,0.00013972,2]
[334022570,1722683452078,-500.0,0.00013972,2]
[334022571,1722683452089,-500.0,0.00013972,2]
[334022572,1722683452101,-1447.26,0.00013972,2]
[334022573,1722683452111,-151.0,0.00013972,2]
[334022574,1722683452122,-151.0,0.00013972,2]
[334022575,1722683452131,-151.0,0.00013972,2]
[334022576,1722683452140,-500.0,0.00013972,2]
[334022577,1722683452150,-247.522058,0.00013972,2]
[334022578,1722683452161,-952.47,0.00013972,2]
[334022579,1722683452172,-1186.83,0.00013972,2]
[334022580,1722683452183,-2111.79,0.00013972,2]
[334022581,1722683452196,-2341.69,0.00013972,2]
[334022582,1722683452206,-151.0,0.00013972,2]
[334022583,1722683452215,-151.0,0.00013972,2]
[334022584,1722683452224,-151.0,0.00013972,2]
[334022585,1722683452234,-462.05584296,0.00013972,2]
[334022586,1722683452245,-500.0,0.00013972,2]
[334022587,1722683452256,-598.64660512,0.00013972,2]
[334022588,1722683452269,-571.26350656,0.00013972,2]
[334022589,1722683452282,-500.0,0.00013972,2]
[334022590,1722683452294,-503.3883103,0.00013972,2]
[334022591,1722683452304,-500.0,0.00013972,2]
[334022592,1722683452315,-2001.49,0.00013972,2]
[334022593,1722683452325,-500.0,0.00013972,2]
[334022594,1722683452335,-546.62249967,0.00013972,2]
[334022595,1722683452347,-598.21473949,0.00013972,2]
[334022596,1722683452358,-895.300982,0.00013972,2]
[334022597,1722683452367,-895.300982,0.00013972,2]
[334022598,1722683452377,-500.0,0.00013972,2]
[334022599,1722683452387,-500.0,0.00013972,2]
[334022600,1722683452397,-895.300982,0.00013972,2]
[334022601,1722683452407,-500.0,0.00013972,2]
[334022602,1722683452416,-895.300982,0.00013972,2]
[334022603,1722683452425,-895.300982,0.00013972,2]
[334022604,1722683452435,-895.300982,0.00013972,2]
[334022605,1722683452445,-7908.59,0.00013972,2]
[334022606,1722683452455,-500.0,0.00013972,2]
[334022607,1722683452464,-500.0,0.00013972,2]
[334022608,1722683452473,-504.29775778,0.00013972,2]
[334022609,1722683452483,-500.0,0.00013972,2]
[334022610,1722683452492,-657.41,0.00013972,2]
[334022611,1722683452502,-500.0,0.00013972,2]
[334022612,1722683452511,-500.0,0.00013972,2]
[334022613,1722683452523,-500.0,0.00013972,2]
[334022614,1722683452533,-500.0,0.00013972,2]
[334022615,1722683452543,-500.0,0.00013972,2]
[334022616,1722683452552,-500.0,0.00013972,2]
[334022617,1722683452561,-151.0,0.00013972,2]
[334022618,1722683452572,-151.0,0.00013972,2]
[334022619,1722683452582,-151.0,0.00013972,2]
[334022620,1722683452591,-2813.76,0.00013972,2]
[334022621,1722683452600,-507.22721615,0.00013972,2]
[334022622,1722683452610,-211.690158,0.00013972,2]
[334022623,1722683452620,-151.0,0.00013972,2]
[334022624,1722683452629,-152.237788,0.00013972,2]
[334022625,1722683452638,-2058.35,0.00013972,2]
[334022626,1722683452648,-500.0,0.00013972,2]
[334022627,1722683452658,-1314.23,0.00013972,2]
[334022628,1722683452668,-723.124593,0.00013972,2]
[334022629,1722683452677,-723.124593,0.00013972,2]
[334022630,1722683452686,-723.124593,0.00013972,2]
[334022631,1722683452696,-872.27,0.00013972,2]
[334022632,1722683452705,-723.124593,0.00013972,2]
[334022633,1722683452714,-723.124593,0.00013972,2]
[334022634,1722683452724,-723.124593,0.00013972,2]
[334022635,1722683452733,-500.0,0.00013972,2]
[334022636,1722683452743,-6633.31,0.00013972,2]
[334022637,1722683452752,-202.56169854,0.00013972,2]
[334022638,1722683452761,-552.757268,0.00013972,2]
[334022639,1722683452772,-552.757268,0.00013972,2]
[334022640,1722683452781,-552.757268,0.00013972,2]
[334022641,1722683452791,-552.757268,0.00013972,2]
[334022642,1722683452800,-552.757268,0.00013972,2]
[334022643,1722683452810,-552.757268,0.00013972,2]
[334022644,1722683452819,-333.748963,0.00013972,2]
[334022645,1722683452829,-333.748963,0.00013972,2]
[334022646,1722683452839,-333.748963,0.00013972,2]
[334022647,1722683452848,-500.0,0.00013972,2]
[334022648,1722683452858,-500.0,0.00013972,2]
[334022649,1722683452868,-500.0,0.00013972,2]
[334022650,1722683452877,-500.0,0.00013972,2]
[334022651,1722683452888,-500.0,0.00013972,2]
[334022652,1722683452897,-333.748963,0.00013972,2]
[334022653,1722683452907,-333.748963,0.00013972,2]
[334022654,1722683452917,-333.748963,0.00013972,2]
[334022655,1722683452929,-500.0,0.00013972,2]
[334022656,1722683452938,-627.42,0.00013972,2]
[334022657,1722683452948,-1007.33,0.00013972,2]
[334022658,1722683452958,-1665.05,0.00013972,2]
[334022659,1722683452968,-1050.47,0.00013972,2]
[334022660,1722683452979,-405.73231472,0.00013972,2]
[334022661,1722683452989,-500.0,0.00013972,2]
[334022662,1722683453002,-901.36,0.00013972,2]
[334022663,1722683453014,-500.0,0.00013972,2]
[334022664,1722683453025,-500.0,0.00013972,2]
[334022665,1722683453035,-870.97,0.00013972,2]
[334022666,1722683453047,-500.0,0.00013972,2]
[334022667,1722683453056,-558.86,0.00013972,2]
[334022668,1722683453066,-500.0,0.00013972,2]
[334022669,1722683453077,-1900.02,0.00013972,2]
[334022670,1722683453088,-500.0,0.00013972,2]
[334022671,1722683453099,-504.95777425,0.00013972,2]
[334022672,1722683453111,-500.0,0.00013972,2]
[334022673,1722683453120,-500.0,0.00013972,2]
[334022674,1722683453131,-500.0,0.00013972,2]
[334022675,1722683453141,-500.0,0.00013972,2]
[334022676,1722683453152,-511.66377225,0.00013972,2]
[334022677,1722683453163,-1163.625441,0.00013972,2]
[334022678,1722683453174,-1163.625441,0.00013972,2]
[334022679,1722683453183,-1163.625441,0.00013972,2]
[334022680,1722683453194,-752.95,0.00013972,2]
[334022681,1722683453203,-4371.09,0.00013972,2]
[334022682,1722683453213,-6048.46,0.00013972,2]
[334022683,1722683453224,-1163.625441,0.00013972,2]
[334022684,1722683453233,-1163.625441,0.00013972,2]
[334022685,1722683453243,-1163.625441,0.00013972,2]
[334022686,1722683453253,-500.0,0.00013972,2]
[334022687,1722683453262,-642.41,0.00013972,2]
[334022688,1722683453274,-240.57412474,0.00013972,2]
[334022689,1722683453283,-790.57,0.00013972,2]
[334022690,1722683453293,-208.073644,0.00013972,2]
[334022691,1722683453303,-723.14,0.00013972,2]
[334022692,1722683453312,-500.0,0.00013972,2]
[334022693,1722683453322,-500.0,0.00013972,2]
[334022694,1722683453331,-583.21,0.00013972,2]
[334022695,1722683453341,-517.52341008,0.00013972,2]
[334022696,1722683453350,-1815.5,0.00013972,2]
[334022697,1722683453360,-505.1053373,0.00013972,2]
[334022698,1722683453369,-915.18,0.00013972,2]
[334022699,1722683453379,-500.0,0.00013972,2]
[334022700,1722683453389,-500.0,0.00013972,2]
[334022701,1722683453398,-500.0,0.00013972,2]
[334022702,1722683453408,-440.848117,0.00013972,2]
[334022703,1722683453418,-440.848117,0.00013972,2]
[334022704,1722683453427,-440.848117,0.00013972,2]
[334022705,1722683453437,-500.0,0.00013972,2]
[334022706,1722683453447,-440.848117,0.00013972,2]
[334022707,1722683453456,-501.48845629,0.00013972,2]
[334022708,1722683453468,-440.848117,0.00013972,2]
[334022709,1722683453478,-440.848117,0.00013972,2]
[334022710,1722683453488,-2473.64,0.00013972,2]
[334022711,1722683453497,-500.0,0.00013972,2]
[334022712,1722683453507,-808.864047,0.00013972,2]
[334022713,1722683453517,-808.864047,0.00013972,2]
[334022714,1722683453526,-500.0,0.00013972,2]
[334022715,1722683453536,-808.864047,0.00013972,2]
[334022716,1722683453545,-500.0,0.00013972,2]
[334022717,1722683453554,-808.864047,0.00013972,2]
[334022718,1722683453565,-500.0,0.00013972,2]
[334022719,1722683453577,-808.864047,0.00013972,2]
[334022720,1722683453588,-808.864047,0.00013972,2]
[334022721,1722683453599,-537.74,0.00013972,2]
[334022722,1722683453609,-500.0,0.00013972,2]
[334022723,1722683453621,-500.0,0.00013972,2]
[334022724,1722683453630,-263.34841294,0.00013972,2]
[334022725,1722683453639,-503.48499382,0.00013972,2]
[334022726,1722683453650,-500.0,0.00013972,2]
[334022727,1722683453659,-500.0,0.00013972,2]
[334022728,1722683453670,-500.0,0.00013972,2]
[334022729,1722683453680,-500.0,0.00013972,2]
[334022730,1722683453691,-500.0,0.00013972,2]
[334022731,1722683453700,-500.0,0.00013972,2]
[334022732,1722683453712,-1050.89,0.00013972,2]
[334022733,1722683453723,-500.0,0.00013972,2]
[334022734,1722683453734,-500.0,0.00013972,2]
[334022735,1722683453744,-231.820996,0.00013972,2]
[334022736,1722683453753,-231.820996,0.00013972,2]
[334022737,1722683453765,-231.820996,0.00013972,2]
[334022738,1722683453776,-779.27,0.00013972,2]
[334022739,1722683453787,-727.85,0.00013972,2]
[334022740,1722683453797,-500.0,0.00013972,2]
[334022741,1722683453808,-500.0,0.00013972,2]
[334022742,1722683453818,-231.820996,0.00013972,2]
[334022743,1722683453829,-231.820996,0.00013972,2]
[334022744,1722683453842,-231.820996,0.00013972,2]
[334022745,1722683453853,-151.0,0.00013972,2]
[334022746,1722683453864,-151.0,0.00013972,2]
[334022747,1722683453876,-151.0,0.00013972,2]
[334022748,1722683453960,-500.0,0.00013972,2]
[334022749,1722683453974,-1028.93,0.00013972,2]
[334022750,1722683453985,-629.63,0.00013972,2]
[334022751,1722683453996,-159.84068377,0.00013973,2]
[334022752,1722683454009,-413.5166813,0.00014,2]
[334022753,1722683454020,-178.6204013,0.00014,2]
[334022754,1722683454032,-182.164398,0.00014,2]
[334022755,1722683454042,-182.164398,0.00014,2]
[334022756,1722683454052,-239.386363,0.00014,2]
[334022757,1722683454062,-239.386363,0.00014,2]
[334022758,1722683454072,-251.959794,0.00014,2]
[334022759,1722683454081,-251.959794,0.00014,2]
[334022760,1722683454093,-623.0,0.00014,2]
[334022761,1722683454104,-206.8816348,0.00014,2]
[334022762,1722683454115,-294.2310959,0.00014,2]
[334022763,1722683454126,-294.2310959,0.00014,2]
[334022764,1722683454136,-294.2310959,0.00014,2]
[334022765,1722683454148,-294.1739553,0.00014027,2]
[334022766,1722683454160,-620.00011706,0.00014038,2]
[334022767,1722683454172,-601.86516592,0.00014084,2]
[334022768,1722683454185,-150.112233,0.000141,2]
[334022769,1722683454198,-300.0,0.000142,5]
[334022770,1722683454208,-1169.16845149,0.00014217,2]
[334022771,1722683454218,-151.0,0.00014235,2]
[334022772,1722683454227,-151.0,0.00014235,2]
[334022773,1722683454238,-797.727985,0.00014235,2]
[334022774,1722683454248,-797.727985,0.00014235,2]
[334022775,1722683454258,-750.022649,0.00014235,2]